[Event "FIDE Grand Swiss 2023"]
[Site "Villa Marina, Douglas, Isle of Man"]
[Date "2023.10.27"]
[Round "3.38"]
[White "Royal, Shreyas"]
[Black "Bartel, Mateusz"]
[Result "1/2-1/2"]
[WhiteElo "2407"]
[BlackElo "2651"]
[EventDate "2023.10.25"]
[ECO "E00"]
[PlyCount "109"]
[BlackFideId "1112635"]
[TimeControl "40/100 + 20/50 + 15 + 30s/move"]
[WhiteFideId "448869"]

1.d4 {[%clk 01:40:54] [%emt 00:00:05]} 1...Nf6 {[%clk 01:40:43] [%emt 00:00:17]} 
2.c4 {[%clk 01:41:14] [%emt 00:00:09]} 2...e6 {[%clk 01:41:09] [%emt 00:00:04]} 
3.Nf3 {[%clk 01:41:36] [%emt 00:00:09]} 3...d5 {[%clk 01:41:33] [%emt 00:00:06]} 
4.g3 {[%clk 01:41:33] [%emt 00:00:33]} 4...Bb4+ {[%clk 01:41:56] [%emt
00:00:07]} 5.Bd2 {[%clk 01:41:55] [%emt 00:00:07]} 5...Bd6 {[%clk 01:42:21]
[%emt 00:00:05]} 6.Nc3 {[%clk 01:41:56] [%emt 00:00:29]} 6...c6 {[%clk 01:35:05]
[%emt 00:07:47]} 7.Qc2 {[%clk 01:36:29] [%emt 00:05:58]} 7...Nbd7 {[%clk
00:55:11] [%emt 00:40:23]} 8.e4 {[%clk 01:36:20] [%emt 00:00:39]} 8...dxe4 
{[%clk 00:55:11] [%emt 00:00:30]} 9.Nxe4 {[%clk 01:36:34] [%emt 00:00:16]} 
9...Nxe4 {[%clk 00:55:37] [%emt 00:00:04]} 10.Qxe4 {[%clk 01:36:53] [%emt
00:00:11]} 10...Nf6 {[%clk 00:56:05] [%emt 00:00:02]} 11.Qc2 {[%clk 01:29:37]
[%emt 00:07:46]} 11...O-O {[%clk 00:50:52] [%emt 00:05:43]} 12.Bg2 {[%clk
01:27:52] [%emt 00:02:15]} 12...b5 {[%clk 00:51:01] [%emt 00:00:22]} 13.Ne5 
{[%clk 01:15:36] [%emt 00:12:44]} 13...bxc4 {[%clk 00:48:58] [%emt 00:02:34]} 
14.Nxc6 {[%clk 01:08:20] [%emt 00:07:47]} 14...Qb6 {[%clk 00:46:00] [%emt
00:03:28]} 15.Ne7+ {[%clk 01:05:24] [%emt 00:03:26]} 15...Bxe7 {[%clk 00:46:26]
[%emt 00:00:02]} 16.Bxa8 {[%clk 01:05:44] [%emt 00:00:11]} 16...Nd5 {[%clk
00:38:44] [%emt 00:08:12]} 17.O-O {[%clk 00:57:24] [%emt 00:08:49]} 17...Qxd4 
{[%clk 00:39:07] [%emt 00:00:08]} 18.Rad1 {[%clk 00:47:55] [%emt 00:10:00]} 
18...Qg4 {[%clk 00:38:39] [%emt 00:00:57]} 19.Rfe1 {[%clk 00:35:56] [%emt
00:12:29]} 19...Bc5 {[%clk 00:36:46] [%emt 00:02:24]} 20.Qe4 {[%clk 00:35:08]
[%emt 00:01:18]} 20...Qh5 {[%clk 00:28:11] [%emt 00:09:04]} 21.Bc3 {[%clk
00:34:29] [%emt 00:01:09]} 21...Nxc3 {[%clk 00:26:46] [%emt 00:01:55]} 22.bxc3 
{[%clk 00:34:54] [%emt 00:00:05]} 22...Bb6 {[%clk 00:27:02] [%emt 00:00:14]} 
23.Qxc4 {[%clk 00:31:30] [%emt 00:03:54]} 23...Qa5 {[%clk 00:25:40] [%emt
00:01:52]} 24.Bc6 {[%clk 00:27:42] [%emt 00:04:18]} 24...Ba6 {[%clk 00:24:13]
[%emt 00:01:57]} 25.Qa4 {[%clk 00:26:01] [%emt 00:02:12]} 25...Qxc3 {[%clk
00:18:15] [%emt 00:06:27]} 26.Qxa6 {[%clk 00:26:20] [%emt 00:00:11]} 26...Qxc6 
{[%clk 00:18:41] [%emt 00:00:05]} 27.Qd3 {[%clk 00:26:14] [%emt 00:00:36]} 
27...h6 {[%clk 00:14:37] [%emt 00:04:33]} 28.Rc1 {[%clk 00:24:36] [%emt
00:02:09]} 28...Qa4 {[%clk 00:14:57] [%emt 00:00:09]} 29.Qc4 {[%clk 00:24:35]
[%emt 00:00:31]} 29...Qxc4 {[%clk 00:13:41] [%emt 00:01:46]} 30.Rxc4 {[%clk
00:22:58] [%emt 00:02:07]} 30...Rd8 {[%clk 00:14:08] [%emt 00:00:03]} 31.Re2 
{[%clk 00:21:59] [%emt 00:01:30]} 31...Kf8 {[%clk 00:14:24] [%emt 00:00:14]} 
32.a4 {[%clk 00:18:55] [%emt 00:03:34]} 32...Ke7 {[%clk 00:13:17] [%emt
00:01:36]} 33.Kg2 {[%clk 00:19:07] [%emt 00:00:17]} 33...Rd5 {[%clk 00:13:16]
[%emt 00:00:32]} 34.f4 {[%clk 00:17:39] [%emt 00:01:59]} 34...h5 {[%clk
00:10:26] [%emt 00:03:19]} 35.Rce4 {[%clk 00:14:46] [%emt 00:03:23]} 35...Ra5 
{[%clk 00:06:32] [%emt 00:04:24]} 36.Rb2 {[%clk 00:09:40] [%emt 00:05:37]} 
36...g6 {[%clk 00:06:12] [%emt 00:00:49]} 37.Kf3 {[%clk 00:07:10] [%emt
00:03:00]} 37...Rc5 {[%clk 00:04:35] [%emt 00:02:07]} 38.Ke2 {[%clk 00:07:05]
[%emt 00:00:35]} 38...Rc3 {[%clk 00:04:40] [%emt 00:00:25]} 39.Ra2 {[%clk
00:03:57] [%emt 00:03:38]} 39...Rc5 {[%clk 00:02:51] [%emt 00:02:19]} 40.Kd3 
{[%clk 00:03:40] [%emt 00:00:47]} 40...Rd5+ {[%clk 00:02:51] [%emt 00:00:30]} 
41.Kc4 {[%clk 00:49:00] [%emt 00:05:10]} 41...Kd6 {[%clk 00:52:40] [%emt
00:00:41]} 42.Ree2 {[%clk 00:40:20] [%emt 00:09:11]} 42...Ba5 {[%clk 00:42:13]
[%emt 00:10:56]} 43.Rab2 {[%clk 00:35:19] [%emt 00:05:31]} 43...Rc5+ {[%clk
00:42:24] [%emt 00:00:19]} 44.Kb3 {[%clk 00:35:26] [%emt 00:00:23]} 44...Rd5 
{[%clk 00:42:47] [%emt 00:00:07]} 45.Ka3 {[%clk 00:33:29] [%emt 00:02:28]} 
45...Bb6 {[%clk 00:38:54] [%emt 00:04:22]} 46.Red2 {[%clk 00:30:56] [%emt
00:03:04]} 46...Bd4 {[%clk 00:38:31] [%emt 00:00:53]} 47.Rbc2 {[%clk 00:31:21]
[%emt 00:00:05]} 47...f6 {[%clk 00:38:55] [%emt 00:00:05]} 48.Kb3 {[%clk
00:31:14] [%emt 00:00:37]} 48...e5 {[%clk 00:39:01] [%emt 00:00:24]} 49.Rc8 
{[%clk 00:29:45] [%emt 00:01:59]} 49...Ke6 {[%clk 00:38:11] [%emt 00:01:19]} 
50.Kc4 {[%clk 00:25:19] [%emt 00:04:57]} 50...Rd6 {[%clk 00:36:09] [%emt
00:02:32]} 51.a5 {[%clk 00:22:36] [%emt 00:03:13]} 51...Kf5 {[%clk 00:36:30]
[%emt 00:00:08]} 52.fxe5 {[%clk 00:20:17] [%emt 00:02:50]} 52...fxe5 {[%clk
00:36:56] [%emt 00:00:04]} 53.Re2 {[%clk 00:20:42] [%emt 00:00:05]} 53...Kg4 
{[%clk 00:34:19] [%emt 00:03:06]} 54.Kd3 {[%clk 00:19:35] [%emt 00:01:38]} 
54...Rd5 {[%clk 00:28:42] [%emt 00:06:07]} 55.Ra2 {[%clk 00:17:03] [%emt
00:03:02]} 1/2-1/2

[Event "FIDE Grand Swiss 2023"]
[Site "Villa Marina, Douglas, Isle of Man"]
[Date "2023.10.27"]
[Round "3.39"]
[White "Harikrishna, Pentala"]
[Black "Karthikeyan, Murali"]
[Result "1/2-1/2"]
[WhiteElo "2716"]
[BlackElo "2611"]
[EventDate "2023.10.25"]
[ECO "E48"]
[PlyCount "61"]
[BlackFideId "5074452"]
[TimeControl "40/100 + 20/50 + 15 + 30s/move"]
[WhiteFideId "5007003"]

1.d4 {[%clk 01:40:45] [%emt 00:00:14]} 1...Nf6 {[%clk 01:40:51] [%emt 00:00:10]} 
2.c4 {[%clk 01:41:09] [%emt 00:00:05]} 2...e6 {[%clk 01:41:09] [%emt 00:00:12]} 
3.Nc3 {[%clk 01:41:34] [%emt 00:00:05]} 3...Bb4 {[%clk 01:41:33] [%emt
00:00:06]} 4.e3 {[%clk 01:41:57] [%emt 00:00:06]} 4...O-O {[%clk 01:41:57] [%emt
00:00:07]} 5.Bd3 {[%clk 01:42:23] [%emt 00:00:04]} 5...d5 {[%clk 01:42:20] [%emt
00:00:07]} 6.cxd5 {[%clk 01:42:49] [%emt 00:00:05]} 6...exd5 {[%clk 01:42:43]
[%emt 00:00:07]} 7.Ne2 {[%clk 01:43:13] [%emt 00:00:05]} 7...Bd6 {[%clk
01:42:53] [%emt 00:00:20]} 8.O-O {[%clk 01:42:17] [%emt 00:01:25]} 8...Re8 
{[%clk 01:33:33] [%emt 00:09:51]} 9.Ng3 {[%clk 01:39:20] [%emt 00:03:27]} 
9...c5 {[%clk 01:08:04] [%emt 00:26:00]} 10.dxc5 {[%clk 01:00:46] [%emt
00:39:03]} 10...Bxc5 {[%clk 01:08:05] [%emt 00:00:29]} 11.e4 {[%clk 00:54:05]
[%emt 00:07:11]} 11...dxe4 {[%clk 00:39:54] [%emt 00:28:41]} 12.Ngxe4 {[%clk
00:51:19] [%emt 00:03:16]} 12...Nxe4 {[%clk 00:40:00] [%emt 00:00:24]} 13.Nxe4 
{[%clk 00:50:53] [%emt 00:00:56]} 13...Be7 {[%clk 00:40:07] [%emt 00:00:23]} 
14.Nc3 {[%clk 00:49:34] [%emt 00:01:48]} 14...Nc6 {[%clk 00:38:22] [%emt
00:02:16]} 15.Bf4 {[%clk 00:46:48] [%emt 00:03:16]} 15...Be6 {[%clk 00:32:40]
[%emt 00:06:12]} 16.Qf3 {[%clk 00:45:01] [%emt 00:02:16]} 16...Qb6 {[%clk
00:23:21] [%emt 00:09:50]} 17.Nb5 {[%clk 00:40:52] [%emt 00:04:39]} 17...Nd4 
{[%clk 00:20:59] [%emt 00:02:52]} 18.Nxd4 {[%clk 00:40:55] [%emt 00:00:27]} 
18...Qxd4 {[%clk 00:21:27] [%emt 00:00:02]} 19.b3 {[%clk 00:40:01] [%emt
00:01:24]} 19...g5 {[%clk 00:11:05] [%emt 00:10:53]} 20.Bg3 {[%clk 00:38:56]
[%emt 00:01:34]} 20...Bf6 {[%clk 00:06:46] [%emt 00:04:50]} 21.Bc4 {[%clk
00:32:02] [%emt 00:07:23]} 21...Bxc4 {[%clk 00:06:44] [%emt 00:00:33]} 22.bxc4 
{[%clk 00:32:16] [%emt 00:00:15]} 22...Kg7 {[%clk 00:06:45] [%emt 00:00:29]} 
23.Rac1 {[%clk 00:29:41] [%emt 00:03:05]} 23...b6 {[%clk 00:06:24] [%emt
00:00:52]} 24.h3 {[%clk 00:23:04] [%emt 00:07:06]} 24...Rac8 {[%clk 00:05:28]
[%emt 00:01:26]} 25.Qb7 {[%clk 00:20:34] [%emt 00:02:59]} 25...Rxc4 {[%clk
00:04:57] [%emt 00:01:03]} 26.Rcd1 {[%clk 00:17:35] [%emt 00:03:27]} 26...Qe4 
{[%clk 00:04:32] [%emt 00:00:55]} 27.Qxa7 {[%clk 00:17:57] [%emt 00:00:08]} 
27...Ra8 {[%clk 00:01:49] [%emt 00:03:13]} 28.Qxb6 {[%clk 00:17:46] [%emt
00:00:42]} 28...Rxa2 {[%clk 00:01:30] [%emt 00:00:49]} 29.Rde1 {[%clk 00:11:43]
[%emt 00:06:32]} 29...Qc6 {[%clk 00:00:48] [%emt 00:01:12]} 30.Qxc6 {[%clk
00:07:52] [%emt 00:04:22]} 30...Rxc6 {[%clk 00:01:14] [%emt 00:00:05]} 31.Be5 
{[%clk 00:08:17] [%emt 00:00:04]} 1/2-1/2

[Event "FIDE Grand Swiss 2023"]
[Site "Villa Marina, Douglas, Isle of Man"]
[Date "2023.10.27"]
[Round "3.40"]
[White "Theodorou, Nikolas"]
[Black "Van Foreest, Jorden"]
[Result "1/2-1/2"]
[WhiteElo "2619"]
[BlackElo "2707"]
[EventDate "2023.10.25"]
[ECO "C54"]
[PlyCount "93"]
[BlackFideId "1039784"]
[TimeControl "40/100 + 20/50 + 15 + 30s/move"]
[WhiteFideId "4262875"]

1.e4 {[%clk 01:40:57] [%emt 00:00:02]} 1...e5 {[%clk 01:39:41] [%emt 00:01:19]} 
2.Nf3 {[%clk 01:41:20] [%emt 00:00:07]} 2...Nc6 {[%clk 01:40:06] [%emt
00:00:05]} 3.Bc4 {[%clk 01:41:46] [%emt 00:00:04]} 3...Bc5 {[%clk 01:40:20]
[%emt 00:00:16]} 4.c3 {[%clk 01:41:02] [%emt 00:01:15]} 4...Nf6 {[%clk 01:40:36]
[%emt 00:00:13]} 5.d3 {[%clk 01:39:56] [%emt 00:01:37]} 5...d6 {[%clk 01:40:29]
[%emt 00:00:37]} 6.O-O {[%clk 01:39:05] [%emt 00:01:20]} 6...a5 {[%clk 01:40:18]
[%emt 00:00:41]} 7.Re1 {[%clk 01:33:34] [%emt 00:06:01]} 7...Ba7 {[%clk
01:39:11] [%emt 00:01:37]} 8.h3 {[%clk 01:27:47] [%emt 00:06:17]} 8...h6 {[%clk
01:38:46] [%emt 00:00:55]} 9.Na3 {[%clk 01:28:13] [%emt 00:00:05]} 9...g5 
{[%clk 01:35:59] [%emt 00:03:15]} 10.Nb5 {[%clk 01:20:10] [%emt 00:08:34]} 
10...Bb6 {[%clk 01:34:31] [%emt 00:01:57]} 11.Be3 {[%clk 01:17:05] [%emt
00:03:36]} 11...Bxe3 {[%clk 01:34:31] [%emt 00:00:30]} 12.Rxe3 {[%clk 01:15:15]
[%emt 00:02:21]} 12...g4 {[%clk 01:30:27] [%emt 00:04:33]} 13.Nh2 {[%clk
01:14:04] [%emt 00:01:41]} 13...h5 {[%clk 01:18:53] [%emt 00:12:04]} 14.d4 
{[%clk 00:59:38] [%emt 00:14:56]} 14...Bd7 {[%clk 01:12:49] [%emt 00:06:34]} 
15.h4 {[%clk 00:48:23] [%emt 00:11:45]} 15...Kf8 {[%clk 01:07:30] [%emt
00:05:49]} 16.a4 {[%clk 00:47:26] [%emt 00:01:28]} 16...Na7 {[%clk 00:55:50]
[%emt 00:12:08]} 17.Qb3 {[%clk 00:40:13] [%emt 00:07:45]} 17...Nxb5 {[%clk
00:53:57] [%emt 00:02:23]} 18.Bxb5 {[%clk 00:36:35] [%emt 00:04:08]} 18...Be6 
{[%clk 00:41:37] [%emt 00:12:49]} 19.Bc4 {[%clk 00:36:17] [%emt 00:00:49]} 
19...Bxc4 {[%clk 00:33:36] [%emt 00:08:31]} 20.Qxc4 {[%clk 00:36:44] [%emt
00:00:02]} 20...Nd7 {[%clk 00:34:02] [%emt 00:00:05]} 21.Nf1 {[%clk 00:31:42]
[%emt 00:05:31]} 21...Nb6 {[%clk 00:33:52] [%emt 00:00:40]} 22.Qb5 {[%clk
00:31:20] [%emt 00:00:53]} 22...Qxh4 {[%clk 00:34:15] [%emt 00:00:07]} 23.dxe5 
{[%clk 00:30:26] [%emt 00:01:24]} 23...Qg5 {[%clk 00:33:15] [%emt 00:01:30]} 
24.exd6 {[%clk 00:30:28] [%emt 00:00:28]} 24...Qxb5 {[%clk 00:33:39]} 25.axb5 
{[%clk 00:30:54] [%emt 00:00:09]} 25...cxd6 {[%clk 00:30:21] [%emt 00:03:49]} 
26.Rd3 {[%clk 00:29:02] [%emt 00:02:22]} 26...Rh6 {[%clk 00:30:23] [%emt
00:00:26]} 27.Ne3 {[%clk 00:28:44] [%emt 00:00:49]} 27...Re6 {[%clk 00:30:04]
[%emt 00:00:49]} 28.Rd4 {[%clk 00:26:30] [%emt 00:02:44]} 28...Rae8 {[%clk
00:24:58] [%emt 00:05:37]} 29.f3 {[%clk 00:22:03] [%emt 00:04:56]} 29...gxf3 
{[%clk 00:22:36] [%emt 00:02:52]} 30.gxf3 {[%clk 00:22:31] [%emt 00:00:03]} 
30...a4 {[%clk 00:17:21] [%emt 00:05:45]} 31.Kf2 {[%clk 00:21:32] [%emt
00:01:29]} 31...Rf6 {[%clk 00:12:31] [%emt 00:05:20]} 32.Nf5 {[%clk 00:14:08]
[%emt 00:07:54]} 32...Re5 {[%clk 00:04:31] [%emt 00:08:30]} 33.Nxd6 {[%clk
00:10:52] [%emt 00:03:46]} 33...Rxd6 {[%clk 00:04:37] [%emt 00:00:24]} 34.Rxd6 
{[%clk 00:11:19] [%emt 00:00:02]} 34...Rxb5 {[%clk 00:05:02] [%emt 00:00:05]} 
35.Kg3 {[%clk 00:06:31] [%emt 00:05:18]} 35...Rxb2 {[%clk 00:04:43] [%emt
00:00:49]} 36.Rh6 {[%clk 00:05:16] [%emt 00:01:46]} 36...Rb5 {[%clk 00:02:24]
[%emt 00:02:49]} 37.e5 {[%clk 00:04:12] [%emt 00:01:33]} 37...Ke7 {[%clk
00:02:06] [%emt 00:00:49]} 38.Rxh5 {[%clk 00:04:01] [%emt 00:00:41]} 38...Rb3 
{[%clk 00:01:51] [%emt 00:00:45]} 39.Rh4 {[%clk 00:01:13] [%emt 00:03:18]} 
39...Ke6 {[%clk 00:02:12] [%emt 00:00:09]} 40.c4 {[%clk 00:00:34] [%emt
00:01:09]} 40...a3 {[%clk 00:01:01] [%emt 00:01:41]} 41.Re1 {[%clk 00:28:25]
[%emt 00:22:39]} 41...a2 {[%clk 00:47:31] [%emt 00:03:59]} 42.Ra1 {[%clk
00:23:50] [%emt 00:05:05]} 42...Rb2 {[%clk 00:47:16] [%emt 00:00:45]} 43.Re4 
{[%clk 00:09:06] [%emt 00:15:14]} 43...Rc2 {[%clk 00:43:31] [%emt 00:04:15]} 
44.c5 {[%clk 00:06:36] [%emt 00:03:01]} 44...Nc4 {[%clk 00:40:01] [%emt
00:03:59]} 45.Rxa2 {[%clk 00:03:29] [%emt 00:03:37]} 45...Rxa2 {[%clk 00:40:18]
[%emt 00:00:12]} 46.Rxc4 {[%clk 00:03:57] [%emt 00:00:03]} 46...Kxe5 {[%clk
00:40:31] [%emt 00:00:17]} 47.Rb4 {[%clk 00:03:31] [%emt 00:00:57]} 1/2-1/2

[Event "FIDE Grand Swiss 2023"]
[Site "Villa Marina, Douglas, Isle of Man"]
[Date "2023.10.27"]
[Round "3.41"]
[White "Donchenko, Alexander"]
[Black "Akobian, Varuzhan"]
[Result "1-0"]
[WhiteElo "2676"]
[BlackElo "2582"]
[EventDate "2023.10.25"]
[ECO "E00"]
[PlyCount "118"]
[BlackFideId "13300580"]
[TimeControl "40/100 + 20/50 + 15 + 30s/move"]
[WhiteFideId "24603295"]

1.d4 {[%clk 01:40:58] [%emt 00:00:02]} 1...d5 {[%clk 01:40:29] [%emt 00:00:31]} 
2.c4 {[%clk 01:41:11] [%emt 00:00:17]} 2...e6 {[%clk 01:40:48] [%emt 00:00:10]} 
3.Nf3 {[%clk 01:41:26] [%emt 00:00:15]} 3...Nf6 {[%clk 01:40:59] [%emt
00:00:19]} 4.g3 {[%clk 01:41:45] [%emt 00:00:13]} 4...Bb4+ {[%clk 01:40:24]
[%emt 00:01:04]} 5.Bd2 {[%clk 01:41:52] [%emt 00:00:23]} 5...Be7 {[%clk
01:40:34] [%emt 00:00:19]} 6.Bg2 {[%clk 01:42:07] [%emt 00:00:15]} 6...O-O 
{[%clk 01:40:53] [%emt 00:00:11]} 7.O-O {[%clk 01:42:24] [%emt 00:00:13]} 
7...Nbd7 {[%clk 01:41:10] [%emt 00:00:13]} 8.Qc2 {[%clk 01:41:45] [%emt
00:01:09]} 8...c6 {[%clk 01:38:47] [%emt 00:02:53]} 9.Rc1 {[%clk 01:38:43] [%emt
00:03:33]} 9...b6 {[%clk 01:36:09] [%emt 00:03:08]} 10.a4 {[%clk 01:37:35] [%emt
00:01:38]} 10...a5 {[%clk 01:30:25] [%emt 00:06:14]} 11.cxd5 {[%clk 01:35:57]
[%emt 00:02:09]} 11...cxd5 {[%clk 01:30:37] [%emt 00:00:17]} 12.Nc3 {[%clk
01:35:54] [%emt 00:00:33]} 12...Ba6 {[%clk 01:30:44] [%emt 00:00:23]} 13.Nb5 
{[%clk 01:32:43] [%emt 00:03:41]} 13...Rc8 {[%clk 01:30:15] [%emt 00:00:57]} 
14.Qb3 {[%clk 01:31:45] [%emt 00:01:29]} 14...Ne4 {[%clk 01:16:51] [%emt
00:13:54]} 15.Bf4 {[%clk 01:28:22] [%emt 00:03:54]} 15...Bxb5 {[%clk 01:10:40]
[%emt 00:07:10]} 16.Qxb5 {[%clk 01:24:59] [%emt 00:04:24]} 16...Nd6 {[%clk
01:10:40] [%emt 00:00:29]} 17.Qa6 {[%clk 01:17:27] [%emt 00:08:03]} 17...Nb8 
{[%clk 01:03:41] [%emt 00:07:29]} 18.Rxc8 {[%clk 01:13:27] [%emt 00:04:30]} 
18...Nxa6 {[%clk 01:03:34] [%emt 00:00:37]} 19.Rxd8 {[%clk 01:13:50] [%emt
00:00:07]} 19...Rxd8 {[%clk 01:03:57] [%emt 00:00:08]} 20.Rc1 {[%clk 01:09:45]
[%emt 00:04:34]} 20...Rc8 {[%clk 01:03:44] [%emt 00:00:42]} 21.Rxc8+ {[%clk
01:06:05] [%emt 00:04:11]} 21...Nxc8 {[%clk 01:03:26] [%emt 00:00:48]} 22.Ne5 
{[%clk 01:06:12] [%emt 00:00:23]} 22...Bd6 {[%clk 00:58:47] [%emt 00:05:09]} 
23.e4 {[%clk 01:03:34] [%emt 00:03:09]} 23...Nc7 {[%clk 00:51:22] [%emt
00:07:55]} 24.Bd2 {[%clk 00:58:38] [%emt 00:05:25]} 24...f6 {[%clk 00:49:43]
[%emt 00:02:09]} 25.Nc6 {[%clk 00:56:39] [%emt 00:02:30]} 25...dxe4 {[%clk
00:46:24] [%emt 00:03:48]} 26.Bxe4 {[%clk 00:56:36] [%emt 00:00:34]} 26...g6 
{[%clk 00:34:39] [%emt 00:12:15]} 27.Kf1 {[%clk 00:54:28] [%emt 00:02:38]} 
27...Kf7 {[%clk 00:29:52] [%emt 00:05:16]} 28.Ke2 {[%clk 00:54:09] [%emt
00:00:49]} 28...Nd5 {[%clk 00:16:38] [%emt 00:13:44]} 29.Bd3 {[%clk 00:40:30]
[%emt 00:14:10]} 29...Ke8 {[%clk 00:07:41] [%emt 00:09:26]} 30.Ba6 {[%clk
00:30:15] [%emt 00:10:46]} 30...Kd7 {[%clk 00:06:48] [%emt 00:01:22]} 31.h4 
{[%clk 00:30:05] [%emt 00:00:40]} 31...Nce7 {[%clk 00:00:53] [%emt 00:06:25]} 
32.Nxe7 {[%clk 00:29:13] [%emt 00:01:23]} 32...Kxe7 {[%clk 00:00:44] [%emt
00:00:38]} 33.Bc8 {[%clk 00:23:25] [%emt 00:06:18]} 33...Bb4 {[%clk 00:00:32]
[%emt 00:00:42]} 34.Bc1 {[%clk 00:23:14] [%emt 00:00:41]} 34...h5 {[%clk
00:00:31] [%emt 00:00:31]} 35.Ba6 {[%clk 00:21:55] [%emt 00:01:48]} 35...Kf7 
{[%clk 00:00:52] [%emt 00:00:09]} 36.Bd3 {[%clk 00:20:35] [%emt 00:01:51]} 
36...Kg7 {[%clk 00:00:33] [%emt 00:00:49]} 37.Be4 {[%clk 00:20:34] [%emt
00:00:30]} 37...Bd6 {[%clk 00:00:32] [%emt 00:00:33]} 38.Bf3 {[%clk 00:09:17]
[%emt 00:11:46]} 38...Kf7 {[%clk 00:00:35] [%emt 00:00:28]} 39.Kd3 {[%clk
00:09:31] [%emt 00:00:15]} 39...Ke7 {[%clk 00:00:37] [%emt 00:00:29]} 40.Kc4 
{[%clk 00:09:31] [%emt 00:00:30]} 40...Nc7 {[%clk 00:00:32] [%emt 00:00:34]} 
41.Be4 {[%clk 00:42:52] [%emt 00:17:09]} 41...f5 {[%clk 00:50:19] [%emt
00:00:43]} 42.Bc6 {[%clk 00:40:45] [%emt 00:02:37]} 42...f4 {[%clk 00:25:26]
[%emt 00:25:24]} 43.gxf4 {[%clk 00:37:29] [%emt 00:03:45]} 43...Kf7 {[%clk
00:24:44] [%emt 00:01:12]} 44.Be3 {[%clk 00:27:43] [%emt 00:10:16]} 44...Be7 
{[%clk 00:23:04] [%emt 00:02:09]} 45.d5 {[%clk 00:26:47] [%emt 00:01:26]} 
45...exd5+ {[%clk 00:21:37] [%emt 00:01:58]} 46.Bxd5+ {[%clk 00:27:15] [%emt
00:00:02]} 46...Nxd5 {[%clk 00:21:59] [%emt 00:00:08]} 47.Kxd5 {[%clk 00:27:41]
[%emt 00:00:05]} 47...Bd8 {[%clk 00:21:57] [%emt 00:00:31]} 48.Bd4 {[%clk
00:25:32] [%emt 00:02:39]} 48...Bxh4 {[%clk 00:13:54] [%emt 00:08:33]} 49.Bxb6 
{[%clk 00:25:43] [%emt 00:00:19]} 49...Ke7 {[%clk 00:13:37] [%emt 00:00:47]} 
50.Ke4 {[%clk 00:13:32] [%emt 00:12:42]} 50...Bf6 {[%clk 00:06:08] [%emt
00:07:59]} 51.f5 {[%clk 00:04:41] [%emt 00:09:21]} 51...gxf5+ {[%clk 00:01:02]
[%emt 00:05:35]} 52.Kxf5 {[%clk 00:05:09] [%emt 00:00:02]} 52...Bxb2 {[%clk
00:01:26] [%emt 00:00:07]} 53.Bxa5 {[%clk 00:05:33] [%emt 00:00:06]} 53...Bd4 
{[%clk 00:00:35] [%emt 00:01:21]} 54.f3 {[%clk 00:05:45] [%emt 00:00:17]} 
54...Be3 {[%clk 00:00:33] [%emt 00:00:33]} 55.Bc7 {[%clk 00:04:37] [%emt
00:01:37]} 55...Kd7 {[%clk 00:00:33] [%emt 00:00:30]} 56.Bf4 {[%clk 00:03:22]
[%emt 00:01:45]} 56...Bf2 {[%clk 00:00:42] [%emt 00:00:22]} 57.Kg5 {[%clk
00:03:17] [%emt 00:00:33]} 57...h4 {[%clk 00:00:52] [%emt 00:00:21]} 58.Kg4 
{[%clk 00:03:32] [%emt 00:00:15]} 58...Kc6 {[%clk 00:00:34] [%emt 00:00:48]} 
59.Bg5 {[%clk 00:03:47] [%emt 00:00:15]} 59...Kb6 {[%clk 00:15:30] [%emt
00:00:35]} 1-0